bitfinex/quotes_SOLUSD_20241210
["timestamp","ask_amount","ask_price","bid_price","bid_amount"]
[1733800424900,0.12549,210.6,210.44,38.41847138]
[1733800425084,0.12549,210.6,210.45,39.13103512]
[1733800425287,0.12549,210.6,210.45,38.41847138]
[1733800425620,0.12549,210.61,210.46,38.41847138]
[1733800425779,0.12549,210.61,210.43,38.41847138]
[1733800425983,20.12549,210.61,210.43,38.41847138]
[1733800426323,20.12549,210.61,210.4,38.41847138]
[1733800426515,20.12549,210.61,210.41,38.41847138]
[1733800426678,20.0,210.59,210.35,0.71267497]
[1733800426882,0.12549,210.54,210.35,38.41847138]
[1733800427104,0.12549,210.5,210.32,53.97647528]
[1733800427303,0.12549,210.5,210.33,38.41847138]
[1733800427507,0.12549,210.45,210.32,14.84516595]
[1733800427805,20.12549,210.45,210.32,14.84516595]
[1733800428106,0.12549,210.45,210.32,14.84516595]
[1733800428689,20.12549,210.45,210.32,14.84516595]
[1733800428887,0.12549,210.43,210.32,14.84516595]
[1733800429086,2.06628711,210.45,210.32,14.84516595]
[1733800429880,0.12549,210.42,210.32,14.84516595]
[1733800430505,0.12549,210.44,210.32,14.84516595]
[1733800430712,20.0,210.43,210.32,14.84516595]
[1733800430903,0.12549,210.42,210.32,14.84516595]
[1733800431108,20.0,210.35,210.16,0.5872164]
[1733800431306,0.12549,210.32,210.16,0.5872164]
[1733800431633,20.12549,210.32,210.16,0.5872164]
[1733800431813,20.12549,210.32,210.17,38.41847138]
[1733800431983,0.12549,210.32,210.17,38.41847138]
[1733800432312,0.12549,210.3,210.16,0.5872164]
[1733800432812,0.12549,210.25,210.16,0.5872164]
[1733800434296,6.1228,210.37,210.18,38.41847138]
[1733800434592,6.1228,210.37,210.16,39.00568778]
[1733800434994,10.0,210.35,210.16,0.5872164]
[1733800435329,10.0,210.33,210.16,0.5872164]
[1733800435510,20.0,210.31,210.16,0.5872164]
[1733800435708,20.0,210.32,210.16,0.5872164]
[1733800435910,0.12549,210.31,210.16,0.5872164]
[1733800436124,20.12549,210.29,210.16,0.5872164]
[1733800437219,0.12549,210.31,210.16,0.5872164]
[1733800437616,20.0,210.26,210.16,0.5872164]
[1733800437795,0.12549,210.25,210.16,0.5872164]
[1733800439211,1.85724633,210.27,210.16,0.5872164]
[1733800439424,4.06737977,210.4,210.17,38.41847138]
[1733800439728,14.06737977,210.4,210.17,38.41847138]
[1733800440300,8.06420814,210.37,210.17,38.41847138]
[1733800440509,70.0,210.35,210.16,0.5872164]
[1733800440708,80.0,210.35,210.16,0.5872164]
[1733800441008,70.12549,210.32,210.16,0.5872164]
[1733800441218,70.12549,210.32,210.15,58.56654161]
[1733800441219,70.0,210.28,210.15,58.56654161]
[1733800441514,0.12549,210.24,210.15,58.56654161]
[1733800442122,20.0,210.27,210.15,58.56654161]
[1733800442626,20.0,210.27,210.12,73.57610003]
[1733800443004,20.0,210.28,210.12,73.57610003]
[1733800443203,0.12549,210.27,210.12,73.57610003]
[1733800443421,0.12549,210.21,210.12,73.57610003]
[1733800443931,20.0,210.17,210.12,73.57610003]
[1733800444230,0.12549,210.16,210.12,73.57610003]
[1733800444401,0.12549,210.16,210.09,89.20885442]
[1733800444598,20.0,210.12,210.09,88.13215442]
[1733800444827,0.12549,210.11,210.07,103.91729928]
[1733800445202,20.12549,210.08,210.07,103.91729928]
[1733800445707,20.12549,210.08,210.07,47.55280632]
[1733800446034,20.12549,210.08,210.07,40.55280632]
[1733800446216,34.39549,210.08,210.07,40.55280632]
[1733800446535,44.39549,210.08,210.0,8.63417912]
[1733800446730,0.12549,210.01,209.99,101.99792937]
[1733800447131,0.12549,210.01,209.94,132.12390807]
[1733800447300,0.12549,210.01,209.95,185.1329907]
[1733800447505,0.12549,210.01,209.95,146.71451932]
[1733800448614,0.12549,210.01,209.95,185.1329907]
[1733800448899,0.12549,210.01,209.95,146.71451932]
[1733800449728,20.12549,210.02,209.94,132.12390807]
[1733800449928,0.12549,210.0,209.94,132.12390807]
[1733800450305,0.12549,209.98,209.94,132.12390807]
[1733800450527,10.12549,209.95,209.89,146.18452388]
[1733800450812,10.0,209.97,209.89,146.18452388]
[1733800450813,20.12549,209.9,209.89,146.18452388]
[1733800451012,20.12549,209.9,209.89,145.18452388]
[1733800451378,0.12549,209.89,209.86,146.71451932]
[1733800451523,20.12549,209.89,209.86,146.71451932]
[1733800451716,0.12549,209.87,209.86,146.71451932]
[1733800452031,0.12549,209.83,209.66,10.0]
[1733800452227,0.12549,209.81,209.77,38.41847138]
[1733800452428,0.12549,209.81,209.8,38.41847138]
[1733800452616,0.12549,209.81,209.69,0.71490801]
[1733800452617,0.12549,209.81,209.79,38.41847138]
[1733800452819,20.0,209.79,209.77,38.41847138]
[1733800453013,0.12549,209.78,209.77,38.41847138]
[1733800453335,0.12549,209.78,209.71,38.41847138]
[1733800453521,23.14030705,209.73,209.55,38.41847138]
[1733800453722,0.12549,209.76,209.56,0.71550748]
[1733800453723,20.12549,209.69,209.56,0.71550748]
[1733800453925,20.12549,209.69,209.51,0.5872164]
[1733800453926,20.0,209.64,209.51,0.5872164]
[1733800454227,0.12549,209.6,209.59,4.64738556]
[1733800454434,20.12549,209.56,209.51,0.5872164]
[1733800454631,19.62549,209.54,209.51,0.5872164]
[1733800454805,0.12549,209.53,209.51,0.5872164]
[1733800455425,0.12549,209.53,209.51,1.64e-05]
[1733800455616,0.12549,209.53,209.52,38.41847138]
[1733800455824,10.0,209.71,209.52,38.41847138]
[1733800455825,23.14030705,209.73,209.52,38.41847138]
[1733800456025,93.56994734,209.7,209.57,38.41847138]
[1733800456545,80.0,209.7,209.55,38.41847138]
[1733800456715,70.0,209.7,209.53,38.41847138]
[1733800456915,70.0,209.66,209.53,38.41847138]
[1733800457237,80.0,209.63,209.51,1.64e-05]
[1733800457421,20.0,209.55,209.51,1.64e-05]
[1733800457815,0.12549,209.52,209.51,1.64e-05]
[1733800458314,2.0345,209.74,209.51,38.41848778]
[1733800458531,70.0,209.76,209.61,38.41847138]
[1733800458739,70.0,209.73,209.57,38.41847138]
[1733800459037,10.0,209.76,209.51,1.64e-05]
[1733800459038,10.0,209.69,209.53,38.41847138]
[1733800459215,70.0,209.67,209.53,38.41847138]
[1733800459548,70.0,209.67,209.51,1.64e-05]
[1733800459549,80.0,209.67,209.52,38.41847138]
[1733800459837,20.0,209.62,209.51,1.64e-05]
[1733800460032,20.12549,209.61,209.51,1.64e-05]
[1733800460216,20.0,209.6,209.51,1.64e-05]
[1733800460423,20.0,209.58,209.51,1.64e-05]
[1733800460838,0.12549,209.57,209.51,1.64e-05]
[1733800461923,20.0,209.54,209.51,1.64e-05]
[1733800462246,0.12549,209.57,209.51,1.64e-05]
[1733800462739,0.12549,209.58,209.51,1.64e-05]
[1733800462939,20.0,209.62,209.53,38.41847138]
[1733800463242,20.0,209.64,209.53,38.41847138]
[1733800463427,70.0,209.68,209.53,38.41847138]
[1733800463624,5.93628435,209.7,209.51,1.64e-05]
[1733800463936,19.116235,209.72,209.61,38.41847138]
[1733800464320,84.27,209.75,209.59,38.41847138]
[1733800464549,19.113335,209.76,209.62,38.41847138]
[1733800464848,70.0,209.87,209.63,0.71553472]
[1733800465016,19.101825,209.89,209.76,38.41847138]
[1733800465218,19.101825,209.89,209.74,38.41847138]
[1733800465545,72.0345,209.94,209.64,10.71520171]
[1733800465723,19.100716,209.92,209.77,38.41847138]
[1733800465926,75.93628435,209.97,209.81,38.41847138]
[1733800466149,75.93628435,209.97,209.7,16.623]
[1733800466150,14.27,209.96,209.8,38.41847138]
[1733800466320,84.27,209.93,209.76,38.41847138]
[1733800466636,84.27,209.93,209.7,6.623]
[1733800466637,94.27,209.89,209.71,38.41847138]
[1733800466948,70.0,209.84,209.66,38.41847138]
[1733800467255,70.0,209.84,209.55,48.41847138]
[1733800467256,70.0,209.73,209.54,38.41847138]
[1733800467419,70.0,209.7,209.52,38.41847138]
[1733800467742,20.12549,209.62,209.46,38.41847138]
[1733800468048,20.12549,209.62,209.55,38.41847138]
[1733800468242,0.12549,209.62,209.52,38.41847138]
[1733800468461,0.12549,209.63,209.51,38.41847138]
[1733800468644,0.12549,209.63,209.52,38.41847138]
[1733800469640,20.0,209.69,209.58,38.41847138]
[1733800469842,70.0,209.68,209.54,38.41847138]
[1733800470156,70.0,209.65,209.47,38.41847138]
[1733800470354,70.0,209.65,209.45,38.41847138]
[1733800470555,70.0,209.61,209.45,38.41847138]
[1733800470736,70.0,209.61,209.41,38.41847138]
[1733800470737,70.0,209.58,209.41,38.41847138]
[1733800470937,0.12549,209.53,209.39,0.58285922]
[1733800471328,0.12549,209.5,209.39,0.58285922]
[1733800471547,0.12549,209.5,209.39,39.0013306]
[1733800471828,0.12549,209.5,209.42,38.41847138]
[1733800472031,0.12549,209.5,209.48,38.41847138]
[1733800472240,10.0,209.68,209.48,38.41847138]
[1733800472439,5.93628435,209.74,209.55,38.41847138]
[1733800472627,70.0,209.7,209.57,38.41847138]
[1733800472830,13.74048132,209.76,209.57,38.41847138]
[1733800473059,70.0,209.76,209.59,38.41847138]
[1733800473533,2.0345,209.83,209.44,38.41847138]
[1733800473534,70.0,209.86,209.66,38.41847138]
[1733800473735,10.0,209.92,209.66,38.41847138]
[1733800473736,70.0,209.89,209.71,38.41847138]
[1733800473936,70.0,209.85,209.65,38.41847138]
[1733800474336,70.0,209.88,209.72,38.41847138]
[1733800474558,70.0,209.82,209.65,38.41847138]
[1733800475058,70.0,209.82,209.62,38.41847138]
[1733800475353,70.0,209.77,209.52,10.0]
[1733800475563,70.0,209.77,209.59,38.41847138]
[1733800475929,20.0,209.74,209.6,38.41847138]
[1733800476137,0.12549,209.73,209.61,38.41847138]
[1733800476366,0.12549,209.73,209.6,38.41847138]
[1733800476736,20.0,209.77,209.64,38.41847138]
[1733800476936,20.0,209.77,209.63,38.41847138]
[1733800477129,20.0,209.71,209.56,38.41847138]
[1733800477328,90.0,209.71,209.54,38.41847138]
[1733800477533,20.0,209.71,209.56,38.41847138]
[1733800477960,90.0,209.71,209.55,38.41847138]
[1733800478267,70.0,209.8,209.66,38.41847138]
[1733800478558,70.0,209.8,209.64,38.41847138]
[1733800478761,70.0,209.77,209.62,38.41847138]
[1733800479056,70.0,209.74,209.62,38.41847138]
[1733800479436,0.12549,209.73,209.62,38.41847138]
[1733800479843,70.0,209.74,209.62,38.41847138]
[1733800479844,0.12549,209.7,209.62,38.41847138]
[1733800480256,0.12549,209.7,209.62,15.19544389]
[1733800480561,0.12549,209.7,209.6,38.41847138]
[1733800480759,20.0,209.75,209.62,38.41847138]
[1733800481343,20.0,209.75,209.59,38.41847138]
[1733800481535,20.0,209.76,209.61,38.41847138]
[1733800481740,90.0,209.76,209.59,38.41847138]
[1733800481941,20.0,209.76,209.59,38.41847138]
[1733800482144,20.0,209.76,209.61,38.41847138]
[1733800482465,70.0,209.82,209.66,38.41847138]
[1733800482840,70.0,209.79,209.62,38.41847138]
[1733800483039,70.0,209.76,209.56,38.41847138]
[1733800483232,70.0,209.72,209.51,38.41847138]
[1733800483442,70.0,209.68,209.51,38.41847138]
[1733800483642,70.0,209.68,209.46,2.36354488]
[1733800483643,20.0,209.61,209.46,1.6479]
[1733800483853,0.12549,209.6,209.46,1.6479]
[1733800484063,0.12549,209.6,209.46,40.06637138]
[1733800484366,0.12549,209.6,209.47,38.41847138]
[1733800484551,0.12549,209.6,209.46,40.06637138]
[1733800485150,0.12549,209.6,209.51,38.41847138]
[1733800485360,0.12549,209.62,209.48,38.41847138]
[1733800485560,20.0,209.5,209.39,0.58285922]
[1733800485764,0.12549,209.49,209.39,0.58285922]
[1733800486639,70.12549,209.49,209.39,0.58285922]
[1733800486835,0.12549,209.45,209.39,0.58285922]
[1733800487037,0.12549,209.41,209.39,0.58285922]
[1733800487271,0.12549,209.41,209.39,5.922e-05]
[1733800487846,0.12549,209.43,209.39,5.922e-05]
[1733800488249,20.0,209.44,209.39,5.922e-05]
[1733800488446,20.0,209.5,209.39,5.922e-05]
[1733800488651,20.0,209.44,209.39,5.922e-05]
[1733800488889,20.0,209.4,209.39,5.922e-05]
[1733800489341,20.0,209.4,209.31,10.0]
[1733800489542,0.12549,209.39,209.31,10.0]
[1733800490956,20.12549,209.39,209.31,10.0]
[1733800491161,70.0,209.52,209.31,10.0]
[1733800491853,14.27,209.48,209.31,10.0]
[1733800492173,70.0,209.49,209.31,10.0]
[1733800492375,0.12549,209.45,209.31,10.0]
[1733800492554,0.12549,209.41,209.31,10.0]
[1733800493880,20.12549,209.41,209.31,10.0]
[1733800494058,0.12549,209.36,209.31,10.0]
[1733800495160,0.12549,209.34,209.31,10.0]
[1733800495361,0.12549,209.34,209.2,6.3786]
[1733800495757,0.12549,209.36,209.2,6.3786]
[1733800495986,16.3786,209.4,209.24,38.80337867]
[1733800496149,16.3786,209.4,209.25,0.71656809]
[1733800496581,70.0,209.47,209.23,20.0]
[1733800496782,75.93628435,209.47,209.23,20.0]
[1733800497080,5.93628435,209.47,209.25,10.0]
[1733800497251,19.140137,209.49,209.32,10.0]
[1733800497447,19.140137,209.49,209.28,10.0]
[1733800497767,70.0,209.48,209.23,0.71633522]
[1733800497966,70.0,209.45,209.22,10.0]
[1733800498285,19.141317,209.52,209.29,10.0]
[1733800498452,70.0,209.51,209.27,10.0]
[1733800498654,25.07760135,209.52,209.28,10.0]
[1733800498870,25.07760135,209.52,209.28,10.71653001]
[1733800499082,25.07760135,209.52,209.28,49.51990868]
[1733800499253,70.0,209.49,209.25,48.80337867]
[1733800499459,0.12549,209.45,209.23,10.0]
[1733800499653,0.12549,209.45,209.27,10.0]
[1733800499848,0.12549,209.45,209.24,0.71662067]
[1733800500072,20.12549,209.45,209.22,10.0]
[1733800500276,0.12549,209.42,209.24,48.80337867]
[1733800500583,0.12549,209.45,209.28,38.80337867]
[1733800500785,70.0,209.48,209.25,10.0]
[1733800501079,19.141317,209.52,209.27,48.80337867]
[1733800501295,19.141317,209.52,209.34,38.80337867]
[1733800501460,70.0,209.65,209.42,38.80337867]
[1733800501656,23.31954461,209.76,209.54,38.80337867]
[1733800501853,7.89809361,209.91,209.65,38.80337867]
[1733800502073,70.0,209.96,209.74,38.80337867]
[1733800502280,42.70539529,209.97,209.73,0.71500427]
[1733800502486,70.0,209.95,209.77,38.80337867]
[1733800502691,23.60256094,209.98,209.77,38.80337867]
[1733800502867,19.38236818,209.99,209.81,38.80337867]
[1733800503178,0.28839018,209.99,209.83,20.0]
[1733800503385,0.28839018,209.99,209.91,48.80337867]
[1733800503984,0.28839018,209.99,209.91,20.0]
[1733800504184,129.40733471,210.03,210.02,10.0]
[1733800504357,129.40733471,210.03,210.02,48.80337867]
[1733800504958,122.74073471,210.03,210.02,48.80337867]
[1733800505157,24.31155535,210.04,210.03,33.776884]
[1733800505357,143.78592746,210.17,210.16,10.0]
[1733800505557,8.1127,210.35,210.18,10.0]
[1733800505787,6.5257,210.35,210.2,48.80337867]
[1733800505985,19.058549,210.38,210.2,97.60675734]
[1733800506169,0.5872164,210.48,210.2,97.60675734]
[1733800506367,133.78557048,210.21,210.2,97.60675734]
[1733800506562,0.5872164,210.48,210.26,20.0]
[1733800506767,0.5872164,210.48,210.33,20.0]
[1733800506968,0.5872164,210.48,210.42,17.4]
[1733800507265,0.5872164,210.48,210.4,38.80337867]
[1733800507479,0.5872164,210.48,210.44,38.80337867]
[1733800507688,0.5872164,210.48,210.46,38.80337867]
[1733800507885,0.5872164,210.48,210.47,0.71248785]
[1733800508497,0.5872164,210.7,210.64,10.0]
[1733800508805,38.04575638,210.82,210.71,10.0]
[1733800509103,38.04575638,210.82,210.71,20.0]
[1733800509393,38.04575638,210.82,210.73,10.0]
[1733800509607,16.14951654,210.82,210.73,10.0]
[1733800509793,16.14951654,210.82,210.68,38.80337867]
[1733800509794,16.14951654,210.82,210.81,38.80337867]
[1733800510097,16.14951654,210.82,210.81,48.80337867]
[1733800510274,16.14951654,210.82,210.81,58.80337867]
[1733800510866,16.14951654,210.82,210.78,10.0]
[1733800511075,16.14951654,210.82,210.78,0.71132197]
[1733800511291,16.14951654,210.82,210.75,0.71139808]
[1733800511702,16.14951654,210.82,210.7,7.12996992]
[1733800512177,16.14951654,210.82,210.73,10.0]
[1733800512373,16.14951654,210.82,210.81,10.0]
[1733800512567,16.14951654,210.82,210.81,0.71143171]
[1733800512772,16.14951654,210.82,210.81,10.71143171]
[1733800512990,16.14951654,210.82,210.81,20.71143171]
[1733800513695,14.33641654,210.82,210.81,20.71143171]
[1733800513900,14.33641654,210.82,210.81,10.71143171]
[1733800514115,14.33641654,210.82,210.77,0.71105563]
[1733800514390,14.33641654,210.82,210.66,0.7114676]
[1733800514591,1.7103,210.81,210.66,0.7114676]
[1733800514894,1.7103,210.81,210.56,10.0]
[1733800514895,6.446,210.8,210.59,10.0]
[1733800515100,0.12549,210.73,210.52,10.71195998]
[1733800515275,0.12549,210.73,210.29,70.2098112]
[1733800515276,0.12549,210.73,210.5,48.80337867]
[1733800515471,0.12549,210.73,210.59,10.0]
[1733800515697,0.12549,210.73,210.61,10.0]
[1733800516007,14.33641654,210.82,210.76,10.0]
[1733800516202,14.33641654,210.82,210.74,38.80337867]
[1733800516377,14.33641654,210.82,210.76,38.80337867]
[1733800516701,14.33641654,210.82,210.65,38.80337867]
[1733800516702,14.33641654,210.82,210.77,10.71138287]
[1733800516998,14.33641654,210.82,210.71,38.80337867]
[1733800517199,14.33641654,210.82,210.61,10.0]
[1733800517407,24.33641654,210.82,210.56,10.0]
[1733800517570,10.0,210.8,210.55,0.71187639]
[1733800517780,14.33641654,210.82,210.6,38.80337867]
[1733800517989,14.33641654,210.82,210.64,48.80337867]
[1733800518196,14.33641654,210.82,210.7,38.80337867]
[1733800518392,14.33641654,210.82,210.65,39.51501749]
[1733800518393,14.33641654,210.82,210.77,10.0]
[1733800518601,14.33641654,210.82,210.8,10.0]
[1733800518925,14.33641654,210.82,210.77,0.71128822]
[1733800518926,14.33641654,210.82,210.77,0.71122657]
[1733800519206,14.33641654,210.82,210.81,10.0]
[1733800519510,14.33641654,210.82,210.81,82.58026267]
[1733800519675,14.33641654,210.82,210.81,83.29148597]
[1733800519876,14.33641654,210.82,210.81,10.7112233]
[1733800520101,14.33641654,210.82,210.77,38.80337867]
[1733800520268,14.33641654,210.82,210.78,48.80337867]
[1733800520469,14.33641654,210.82,210.8,38.80337867]
[1733800520667,14.33641654,210.82,210.81,10.0]
[1733800520979,14.33641654,210.82,210.81,332.0]
[1733800521185,6.446,211.1,210.81,332.0]
[1733800521186,6.446,211.1,210.84,20.0]
[1733800521384,6.446,211.1,210.96,38.80337867]
[1733800521580,6.446,211.1,210.98,38.80337867]
[1733800521780,6.446,211.1,211.0,48.80337867]
[1733800521985,6.446,211.23,211.02,38.80337867]
[1733800522183,6.446,211.23,211.0,10.0]
[1733800522184,6.446,211.23,211.03,0.71042334]
[1733800522382,6.446,211.23,210.93,10.71036734]
[1733800522604,10.0,211.19,210.93,10.71036734]
[1733800522784,10.0,211.19,210.85,10.0]
[1733800522785,10.0,211.19,210.9,0.71070821]
[1733800522981,20.0,211.19,210.9,10.71070821]
[1733800523201,6.446,211.21,210.95,38.80337867]
[1733800523400,6.446,211.21,210.96,10.71059183]
[1733800523582,6.446,211.21,211.07,38.80337867]
[1733800523777,0.6147344,211.3,211.24,10.0]
[1733800523982,0.6147344,211.3,211.28,38.80337867]
[1733800524195,0.6147344,211.3,211.29,10.0]
[1733800524385,0.6147344,211.3,211.29,322.0]
[1733800524595,0.6147344,211.3,211.29,33.776884]
[1733800524905,0.6147344,211.3,211.28,38.80337867]
[1733800525099,0.6147344,211.3,211.28,10.0]
[1733800525406,0.6147344,211.3,211.03,23.76133967]
[1733800525407,0.6147344,211.3,211.11,38.80337867]
[1733800525613,0.6147344,211.3,211.09,10.0]
[1733800525801,10.0,211.25,211.03,10.0]
[1733800526005,10.0,211.23,210.97,10.0]
[1733800526181,10.0,211.23,210.96,48.80337867]
[1733800526380,10.0,211.2,211.02,38.80337867]
[1733800526698,6.446,211.28,211.13,10.0]
[1733800526900,6.446,211.28,211.19,10.0]
[1733800527090,0.6147344,211.3,211.22,38.80337867]
[1733800527292,0.6147344,211.3,211.28,38.80337867]
[1733800527798,0.6147344,211.3,211.28,10.0]
[1733800528008,0.6147344,211.3,211.16,38.80337867]
[1733800528208,0.6147344,211.3,211.09,38.80337867]
[1733800528209,0.6147344,211.3,211.09,23.776884]
[1733800528407,0.6147344,211.3,211.05,10.0]
[1733800528706,6.48,211.23,210.99,10.0]
[1733800528911,10.0,211.2,210.91,10.0]
[1733800529207,0.12549,211.11,210.9,38.80337867]
[1733800529413,0.12549,211.15,210.93,10.0]
[1733800529583,0.12549,211.15,211.03,10.0]
[1733800529913,0.12549,211.15,211.05,10.0]
[1733800530231,0.12549,211.15,211.09,10.0]
[1733800530389,0.12549,211.15,211.03,38.80337867]
[1733800530390,6.48,211.23,211.15,10.0]
[1733800530596,6.48,211.23,211.21,10.0]
[1733800531095,16.48,211.23,210.97,10.0]
[1733800531301,10.0,211.18,210.93,10.0]
[1733800531532,10.0,211.18,210.87,48.80337867]
[1733800531701,10.0,211.11,210.87,10.0]
[1733800531894,10.0,211.01,210.78,10.0]
[1733800532101,10.0,211.01,210.72,10.0]
[1733800532102,10.0,210.96,210.71,38.80337867]
[1733800532299,0.12549,210.88,210.7,10.0]
[1733800532533,0.12549,210.88,210.64,38.80337867]
[1733800532832,0.12549,210.9,210.64,38.80337867]
[1733800532995,0.12549,210.9,210.69,10.0]
[1733800533331,0.12549,210.9,210.74,38.80337867]
[1733800533630,0.12549,210.9,210.65,48.80337867]
[1733800533631,1.6754,211.01,210.82,38.80337867]
[1733800533840,10.0,210.98,210.82,10.0]
[1733800534040,10.0,210.95,210.68,10.0]
[1733800534324,10.0,210.89,210.59,38.80337867]
[1733800534521,10.0,210.89,210.58,10.0]
[1733800534522,10.0,210.87,210.56,10.0]
[1733800534724,10.0,210.87,210.69,38.80337867]
[1733800534899,0.12549,210.9,210.65,10.0]
[1733800535110,0.12549,210.9,210.61,10.0]
[1733800535111,6.48,210.91,210.67,10.0]
[1733800535303,6.48,210.91,210.63,38.80337867]
[1733800535504,6.48,210.91,210.65,38.80337867]
[1733800535727,6.48,210.91,210.77,10.0]
[1733800536032,6.48,210.91,210.68,10.0]
[1733800536234,16.48,210.91,210.6,38.80337867]
[1733800536419,20.0,210.87,210.58,38.80337867]
[1733800536612,6.48,210.91,210.69,38.80337867]
[1733800536931,6.48,210.91,210.65,38.80337867]
[1733800537102,6.48,210.91,210.69,38.80337867]
[1733800537305,6.48,210.91,210.75,38.80337867]
[1733800537507,6.48,211.05,210.82,38.80337867]
[1733800537817,6.48,211.05,210.88,38.80337867]
[1733800538001,10.0,211.01,210.69,20.0]
[1733800538339,6.48,211.05,210.82,23.776884]
[1733800538520,6.48,211.05,210.78,38.80337867]
[1733800538738,6.48,211.05,210.8,38.80337867]
[1733800538901,6.48,211.05,210.77,23.776884]
[1733800539101,6.48,211.05,210.82,38.80337867]
[1733800539353,6.48,211.05,210.86,38.80337867]
[1733800539635,6.48,211.05,210.96,38.80337867]
[1733800539849,6.48,211.22,210.98,38.80337867]
[1733800540018,6.48,211.22,210.87,10.0]
[1733800540019,10.0,211.18,210.87,10.0]
[1733800540331,10.0,211.17,210.9,62.58026267]
[1733800540536,10.0,211.17,210.9,38.80337867]
[1733800540826,16.48,211.22,210.94,38.80337867]
[1733800541129,6.48,211.22,211.02,38.80337867]
[1733800541458,6.48,211.22,210.96,38.80337867]
[1733800541600,16.48,211.22,210.94,38.80337867]
[1733800541803,6.48,211.22,210.98,38.80337867]
[1733800542006,6.48,211.22,211.02,38.80337867]
[1733800542226,6.48,211.22,211.04,48.80337867]
[1733800542440,6.48,211.22,211.04,38.80337867]
[1733800542748,6.48,211.22,210.96,10.0]
[1733800542749,6.48,211.22,211.02,38.80337867]
[1733800542900,6.48,211.22,211.08,38.80337867]
[1733800543105,0.6147344,211.3,211.12,38.80337867]
[1733800543506,0.6147344,211.3,211.1,38.80337867]
[1733800543731,0.6147344,211.3,211.06,38.80337867]
[1733800543917,0.6147344,211.3,211.08,38.80337867]
[1733800544116,10.0,211.29,211.04,38.80337867]
[1733800544326,10.0,211.29,211.02,38.80337867]
[1733800544500,10.6147344,211.3,210.88,14.27]
[1733800544501,10.0,211.16,210.9,38.80337867]
[1733800544705,10.0,211.16,210.88,10.0]
[1733800544706,5.04679412,211.13,210.92,4.95320588]
[1733800544929,10.0,211.11,210.84,4.95320588]
[1733800545123,5.04679412,211.07,210.86,4.95320588]
[1733800545328,0.12549,211.04,210.84,4.95320588]
[1733800545543,0.12549,210.98,210.76,4.95320588]
[1733800545844,0.12549,210.98,210.74,4.95320588]
[1733800545845,10.0,210.92,210.74,4.95320588]
[1733800546025,9.56937799,210.91,210.78,4.95320588]
[1733800546226,0.12549,210.9,210.75,4.95320588]
[1733800546441,0.12549,210.9,210.72,38.80337867]
[1733800546442,0.12549,210.9,210.83,4.95320588]
[1733800546638,0.12549,210.9,210.79,4.95320588]
[1733800546835,0.12549,210.9,210.77,4.95320588]
[1733800547018,5.17228412,210.9,210.7,4.95320588]
[1733800547222,0.12549,210.92,210.78,4.95320588]
[1733800547427,0.12549,210.9,210.71,4.95320588]
[1733800547638,0.12549,210.9,210.68,38.80337867]
[1733800547639,0.12549,210.86,210.68,4.95320588]
[1733800547842,0.12549,210.83,210.68,4.95320588]
[1733800548148,0.12549,210.81,210.64,4.95320588]
[1733800548352,0.12549,210.81,210.69,4.95320588]
[1733800548557,0.12549,210.78,210.63,9.38948194]
[1733800548733,0.12549,210.78,210.63,4.95320588]
[1733800549048,2.6918,210.88,210.67,4.95320588]
[1733800549255,2.6918,210.88,210.76,4.95320588]
[1733800549549,6.0263,211.01,210.86,4.95320588]
[1733800549725,6.0263,211.01,210.88,4.95320588]
[1733800549930,5.04679412,211.13,210.91,4.95320588]
[1733800550253,5.04679412,211.11,210.91,4.95320588]
[1733800550454,5.04679412,211.13,210.92,38.80337867]
[1733800550619,15.04679412,211.13,210.9,4.95320588]
[1733800550821,5.04679412,211.13,210.92,4.95320588]
[1733800551022,5.04679412,211.11,210.92,4.95320588]
[1733800551247,5.04679412,211.11,210.9,4.95320588]
[1733800551548,5.04679412,211.12,210.92,4.95320588]